Workbook

Sheet Proposal
E3: Single | F3: Paye | G3: Private Sector
E4: Married | F4: Self Employed | G4: Public Sector
E5: Widowed
A13: KBC Mortgage NDI Calculator
F14: Rate Chosen | I14: Please ensure rate is appropriate for LTV chosen. | N14: Stressed Rate | P14: =$G$14+2% -> 0.02
A16: Date | E16: =TODAY() -> 2018-12-14 | K16: Loan sought | L16: =IF(AND(Loan_Sought<50000,$E$24<>"Top Up/Equity Release"),"Below Minimum Loan Amount",IF(AND(Loan_Sought<20000,$E$24="Top Up/Equity Release"),"Below Minimum Top Up Amount","")) -> Below Minimum Loan Amount
A18: Agreement Ref | K18: Purchase Price
A20: Name (Applicant 1) | K20: Max LTV (Based on CBI Regulations) | P20: =IFERROR('MAX LTV'!C3,"") -> 
A22: Name (Applicant 2) | K22: Loan to Value | P22: =IF(P18<=0,"",P16/P18) -> 
A24: Lending Purpose | K24: Borrower Age
A26: Property Type | E26: =IFERROR(VLOOKUP(E24,Variables!$A$96:$B$103,2,0),"") ->  | K26: Max Term Permitted (Years) | P26: =IFERROR(IF(OR($E$24="RIP Purchase",$E$24="RIP Remortgage",$E$24="Holiday Home"),MIN(IF(Proposal!P24<'MAX LTV'!H6,'MAX LTV'!E3,'MAX LTV'!D3),'MAX LTV'!J3-Proposal!P24),MIN(IF(Proposal!P24<'MAX LTV'!H6,'MAX LTV'!E3,'MAX LTV'!D3),'MAX LTV'!I3-Proposal!P24)),"") -> 
A28: Location | K28: Term Sought (Years) | L28: =IF(Term_Sought>$P$26,"Exceeds Maximum Term",IF(Term_Sought<5,"Below Minimum Term",IF(AND($E$24="Switcher",Term_Sought>30),"Exceeds Maximum Term",IF(AND(OR($E$24="RIP Purchase",$E$24="RIP Remortgage",$E$24="Holiday Home"),Term_Sought>20),"Exceeds Maximum Term","")))) -> Below Minimum Term
A30: Applicant Details
E31: Applicant 1 | K31: Applicant 2
A33: Status
A35: Joint application
A37: No of Dependants
A39: Employment Type | K39: Employment Type
A41: Employment Sector | K41: Employment Sector
A43: Net Income Calculation
E44: Applicant 1 | K44: Applicant 2
E45: Actual | H45: Allowable | N45: Actual | P45: Allowable
A46: Basic Income | H46: =MIN(E46*Variables!$B$21,N(E46)) -> 0 | K46: Basic Income | P46: =MIN(N46*Variables!C21,N(N46)) -> 0
A48: Guaranteed Car/Garda Rent/Shift Allowance | H48: =E48*Variables!B22 -> 0 | K48: Car Allowance and/or Garda Rent Allowance | P48: =MIN(N48*Variables!C22,N(N48)) -> 0
A50: Other Variable Income | H50: =E50*Variables!B23 -> 0 | K50: Other Variable Income | P50: =MIN(N50*Variables!C23,N(N50)) -> 0
H52: ---------------- | P52: -----------------------
A53: Pre-tax Annual Income | H53: =H46+H48+H50 -> 0 | K53: Pre-tax Annual Income | P53: =P46+P48+P50 -> 0
A55: Combined Pre-tax Annual Income | P55: =H53+P53 -> 0
A57: Combined Net Annual Income* | P57: =IFERROR(MIN(P55,IF(OR(APPLICATION_STATUS=1,APPLICATION_STATUS=3),'Tax Calc'!D73,'Tax Calc'!E73)),"") -> 
N58: -------------------- | P58: --------------------
A59: Combined Net Monthly Income (Divided by 12) | P59: =IFERROR(P57/12,"") -> 
A61: =IF(AND(OR($E$24="RIP Purchase",$E$24="RIP Remortgage"),$E$35="No",$H$53<50000),"Below Gross Qualifying Income",IF(AND(OR($E$24="RIP Purchase",$E$24="RIP Remortgage"),$E$35="Yes",($H$53+$P$53)<75000),"Below Gross Qualifying Income",IF(AND($E$35="No",$H$53<30000),"Below Gross Qualifying Income",IF(AND($E$35="Yes",($H$53+$P$53)<40000),"Below Gross Qualifying Income","")))) -> 
A62: =IF(AND($E$35="No",$E$46<$E$50),"Other Variable Income Cannot be Greater than Basic Income",IF(AND($E$35="Yes",OR($E$46<$E$50,$N$46<$N$50)),"Other Variable Income Cannot be Greater than Basic Income","")) -> 
A64: Additional Commitments
A66: Monthly Maintenance Payments (if applicable)
A67: Monthly Loan Repayments (not redeemed by this facility)
A74: Total Additional Commitments | P74: =SUM(P66:P73) -> 0
A76: Additional Properties
B78: GBP RIPs - Enter all information in GBP and ensure GBP Rate below is correct
B79: GBP Rate | C79: 0.8784
B81: Insert appropriate interest rate below:
B82: Euro RIP | C82: 0.0515
B83: GBP RIP | C83: 0.0515
B84: Homeloan | C84: 0.045
B85: Tracker Rate Loan - RIP | C85: 0.03
B86: Tracker Rate Loan - PDH | C86: 0.03
B87: Address | C87: Type | D87: Property Value | E87: Loan Balance | F87: LTV | G87: Remaining Term | H87: Current Interest Rate | I87: Assumed Interest Rate | J87: Stressed Interest Rate | K87: Monthly Repayment | L87: Monthly Rent | M87: Net Rent | N87: Income Available for Repayments | P87: Euro Income Available for Repayments
F88: =IF(D88=0,0,E88/D88) -> 0 | I88: =IF(ISERROR(VLOOKUP(C88,$B$82:$C$86,2,0)),$G$14,(VLOOKUP(C88,$B$82:$C$86,2,0))) -> 0 | J88: =H88+2% -> 0.02 | K88: =E88*IF(ISERROR(-PMT((J88)/12,G88*12,1000,0,0)),0,-PMT((J88)/12,G88*12,1000,0,0)/1000) -> 0 | M88: =L88*0.6 -> 0 | N88: =M88-K88 -> 0 | P88: =IF(C88="GBP RIP",N88/$C$79,N88) -> 0
F89: =IF(D89=0,0,E89/D89) -> 0 | I89: =IF(ISERROR(VLOOKUP(C89,$B$82:$C$86,2,0)),$G$14,(VLOOKUP(C89,$B$82:$C$86,2,0))) -> 0 | J89: =H89+2% -> 0.02 | K89: =E89*IF(ISERROR(-PMT((J89)/12,G89*12,1000,0,0)),0,-PMT((J89)/12,G89*12,1000,0,0)/1000) -> 0 | M89: =L89*0.6 -> 0 | N89: =M89-K89 -> 0 | P89: =IF(C89="GBP RIP",N89/$C$79,N89) -> 0
F90: 0 | I90: 0 | J90: 0.02 | K90: 0 | M90: 0 | N90: 0 | P90: 0
F91: 0 | I91: 0 | J91: 0.02 | K91: 0 | M91: 0 | N91: 0 | P91: 0
F92: 0 | I92: 0 | J92: 0.02 | K92: 0 | M92: 0 | N92: 0 | P92: 0
F93: 0 | I93: 0 | J93: 0.02 | K93: 0 | M93: 0 | N93: 0 | P93: 0
F94: 0 | I94: 0 | J94: 0.02 | K94: 0 | M94: 0 | N94: 0 | P94: 0
F95: 0
P97: =SUM(P88:P94) -> 0
A99: =IF($F$95>125%,"Exception Required as Overall LTV Position is Above 125%",IF(MAX($F$88:$F$94)>135%,"Exception Required as Individual Property in Excess of 135% LTV","")) -> 
A100: =IF(AND(OR($E$24="RIP Purchase",$E$24="RIP Remortgage"),COUNTIFS($C$88:$C$94,"*RIP*")>1),"Exception Required as Applicant is Exposed to 2 or More BTL Properties",IF(AND(OR($E$24<>"RIP Purchase",$E$24<>"RIP Remortgage"),COUNTIFS($C$88:$C$94,"*RIP*")>2),"Exception Required as Applicant is Exposed to 2 or More BTL Properties","")) -> 
A102: Step 1 - LTV and LTI Parameters
C104: Maximum LTV | E104: =P20 ->  | K104: LTI Loan Cap (3.5x Combined Income) | P104: =IF(OR(E24=Variables!A98,Proposal!E24=Variables!A100,Proposal!E24=Variables!A102,Proposal!E24=Variables!A103),P55*100,P55*Messaging!C4) -> 0
C106: Maximum LTV Cap | E106: =IFERROR(P18*E104,"") ->  | K106: Requested Loan | P106: =Loan_Sought -> 0
C108: Requested LTV | E108: =IFERROR(Loan_Sought/P18,"") -> 
C110: Outside LTV Limit | E110: =IF(E108>E104,"Yes","No") -> No | K110: Outside LTI Limit | P110: =IF(OR(E24="RIP Purchase",E24="RIP Remortgage",E24="Holiday Home"),"N/A",IF(P106>P104,"Yes","No")) -> No
E112: Limits Outside Parameters | H112: =COUNTIF($E$110:$P$110,"Yes") -> 0
E114: Within KBC CBI Limit Criteria | H114: =IFERROR(IF(H112=0,"Yes",IF(H112=2,"No",IF(H112=1,"Yes","No"))),"") -> Yes
E116: Minimum Loan Amount to Qualify | H116: =IFERROR(IF(H112>0,VLOOKUP(H114,Messaging!$E$20:$G$21,3,FALSE),"No minimum"),"N/A") -> No minimum | J116: =IF(AND(H112=1,Loan_Sought<H116),Messaging!D23,IF(H112=2,"Outside Lending Limits","")) -> 
G118: Step 2 - Does the applicant qualify for loan requested? | N118: Required | P118: Maximum
A120: Net Disposable Income (NDI) per month | P120: =IFERROR(P59-P74,"") -> 
A122: Allowable NDI % for mortgage repayment purposes | P122: =NDI!B15 -> 0
A124: Customer Allowable NDI per month | P124: =IFERROR((P120*P122)+P97,"") -> 
A126: Minimum Income Left Over Test | P126: =IF(E110="Yes",ILO!B6,IF(Proposal!P110="Yes",ILO!B7,"-")) -> -
A128: Required Minimum Income Left Over | C128: =IF(H112>0,"Note: CBI Exception","") ->  | P128: =IF(H112>0,IF(E110="Yes",ILO!B6,IF(Proposal!P110="Yes",ILO!B7,ILO!B5)),ILO!B5) -> 2000
A130: Maximum allowable NDI (Euro) for mortgage repayment purposes | N130: =IFERROR(PMT(($P$14)/12,Term_Years*12,-(N132),0,0),"") ->  | P130: =IFERROR(MAX(MIN(P124,P97+P120-P128),0),"") -> 
A132: Maximum Potential Loan Amount Allowable** | N132: =P16 -> 0 | P132: =IFERROR(Max_Loan_Amount,"") -> 
A133: =CONCATENATE("(based on a stressed interest rate of 2% above the interest rate chosen by the Borrower over ",Term_Years," years)") -> 
A135: =VLOOKUP(H112,Messaging!$B$7:$C$9,2,FALSE) -> Max LTV Exceeded per KBC Criteria
D136: =IFERROR(IF(AND(Proposal!$E$110="Yes",Proposal!$H$114="Yes"),VLOOKUP(Proposal!$C$110,Messaging!$B$12:$D$13,3,FALSE),IF(AND(Proposal!$P$110="Yes",Proposal!$H$114="Yes"),VLOOKUP(Proposal!$K$110,Messaging!$B$12:$D$13,3,FALSE),"Any changes to the loan amount sought or purchase price may result in the max loan amount being affected by CBI LTV and/or LTI restrictions.")),"") -> Any changes to the loan amount sought or purchase price may result in the max loan amount being affected by CBI LTV and/or LTI restrictions.
A137: Valid for tax year ending 31st December 2018
A138: **This calculation is for illustrative purposes only and must not be construed as an offer to advance funds by KBC Bank.
A140: KBC Bank Ireland plc is regulated by the Central Bank of Ireland. Lending criteria Terms and Conditions apply. Security and insurance are required. The maximum mortgage is up to 90% of the property value. As a general rule, loan amounts are subject to monthly repayments of up to a maximum of 50% of disposable income and will vary according to individual circumstances. Please contact KBC Bank Ireland PLC to receive more information on charges which may apply to early repayment of fixed loans. All information, prices and rates quoted are for guidance only and do not form any part of a legal contract, agreement or understanding.
A144: Variable Rate Warning: The cost of your monthly repayments may increase - If you do not keep up your repayments you may lose your home. The payment rates on this housing loan may be adjusted by the lender from time to time Warning: Your home is at risk if you do not keep up payments on a mortgage or any other loan secured on it Fixed Rate Warning: You may have to pay charges if you pay off your fixed-rate loan early Interest Only Warning: The entire amount that you have borrowed will still be outstanding at the end of the interest-only period Debt Consolidation Warning: This new loan may take longer to pay off than your previous loans. This means you may pay more than if you paid over a shorter term Endowment Loan Warning: There is no guarantee that the proceeds of the [Insurance Policy / Pension Policy] will be sufficient to repay the loan in full when it becomes due for repayment

Sheet Interest Rate (hidden)
B3: Euro RIP | C3: =Proposal!C82 -> 0.0515
B4: GBP RIP | C4: =Proposal!C83 -> 0.0515
B5: Homeloan | C5: =Proposal!F14 -> Rate Chosen

Sheet ILO (hidden)
A3: Joint Application | B3: =Proposal!E35 -> 0 | F3: Single Borrower MILO | G3: 1500 | H3: 1850 | I3: 2100 | J3: 250
A4: No. Of Dependants | B4: =Proposal!E37 -> 0 | F4: Joint Borrower | G4: 2000 | H4: 2350 | I4: 2600 | J4: 250
A5: Min ILO | B5: =HLOOKUP(B4,B14:AG15,2,0) -> 2000
A6: LTV Exemption Min ILO | B6: =HLOOKUP(B4,$B$22:$AG$23,2,FALSE) -> 2900
A7: LTI Exemption Min ILO | B7: =HLOOKUP(B4,$B$30:$AG$31,2,FALSE) -> 2900
A9: Standard MILO
A10: No of Dependants | B10: 0 | C10: 1 | D10: 2 | E10: 3 | F10: 4 | G10: 5 | H10: 6 | I10: 7 | J10: 8 | K10: 9 | L10: 10 | M10: 11 | N10: 12 | O10: 13 | P10: 14 | Q10: 15 | R10: 16 | S10: 17 | T10: 18 | U10: 19 | V10: 20 | W10: 21 | X10: 22 | Y10: 23 | Z10: 24 | AA10: 25 | AB10: 26 | AC10: 27 | AD10: 28 | AE10: 29 | AF10: 30 | AG10: 31
A11: Single | B11: 1500 | C11: 1850 | D11: 2100 | E11: 2350 | F11: =E11+$J$3 -> 2600 | G11: =F11+$J$3 -> 2850 | H11: =G11+$J$3 -> 3100 | I11: 3350 | J11: 3600 | K11: 3850 | L11: 4100 | M11: 4350 | N11: 4600 | O11: 4850 | P11: 5100 | Q11: 5350 | R11: 5600 | S11: 5850 | T11: 6100 | U11: 6350 | V11: 6600 | W11: 6850 | X11: 7100 | Y11: 7350 | Z11: 7600 | AA11: 7850 | AB11: 8100 | AC11: 8350 | AD11: 8600 | AE11: 8850 | AF11: 9100 | AG11: 9350
A12: Joint | B12: =G4 -> 2000 | C12: 2350 | D12: 2600 | E12: 2850 | F12: =E12+$J$4 -> 3100 | G12: =F12+$J$4 -> 3350 | H12: 3600 | I12: 3850 | J12: 4100 | K12: 4350 | L12: 4600 | M12: 4850 | N12: 5100 | O12: 5350 | P12: 5600 | Q12: 5850 | R12: 6100 | S12: 6350 | T12: 6600 | U12: 6850 | V12: 7100 | W12: 7350 | X12: 7600 | Y12: 7850 | Z12: 8100 | AA12: 8350 | AB12: 8600 | AC12: 8850 | AD12: 9100 | AE12: 9350 | AF12: 9600 | AG12: 9850
A14: No. of Dependants | B14: 0 | C14: 1 | D14: 2 | E14: 3 | F14: 4 | G14: 5 | H14: 6 | I14: 7 | J14: 8 | K14: 9 | L14: 10 | M14: 11 | N14: 12 | O14: 13 | P14: 14 | Q14: 15 | R14: 16 | S14: 17 | T14: 18 | U14: 19 | V14: 20 | W14: 21 | X14: 22 | Y14: 23 | Z14: 24 | AA14: 25 | AB14: 26 | AC14: 27 | AD14: 28 | AE14: 29 | AF14: 30 | AG14: 31
A15: Applicable Rate | B15: =IF($B$3="No",B11,B12) -> 2000 | C15: =IF($B$3="No",C11,C12) -> 2350 | D15: 2600 | E15: 2850 | F15: 3100 | G15: 3350 | H15: 3600 | I15: 3850 | J15: 4100 | K15: 4350 | L15: 4600 | M15: 4850 | N15: 5100 | O15: 5350 | P15: 5600 | Q15: 5850 | R15: 6100 | S15: 6350 | T15: 6600 | U15: 6850 | V15: 7100 | W15: 7350 | X15: 7600 | Y15: 7850 | Z15: 8100 | AA15: 8350 | AB15: 8600 | AC15: 8850 | AD15: 9100 | AE15: 9350 | AF15: 9600 | AG15: 9850
A17: LTV Exemption MILO | B17: Buffer = | C17: 0.45
A18: No of Dependants | B18: 0 | C18: 1 | D18: 2 | E18: 3 | F18: 4 | G18: 5 | H18: 6 | I18: 7 | J18: 8 | K18: 9 | L18: 10 | M18: 11 | N18: 12 | O18: 13 | P18: 14 | Q18: 15 | R18: 16 | S18: 17 | T18: 18 | U18: 19 | V18: 20 | W18: 21 | X18: 22 | Y18: 23 | Z18: 24 | AA18: 25 | AB18: 26 | AC18: 27 | AD18: 28 | AE18: 29 | AF18: 30 | AG18: 31
A19: Single | B19: =B11*(1+$C$17) -> 2175 | C19: =C11*(1+$C$17) -> 2682.5 | D19: 3045 | E19: 3407.5 | F19: 3770 | G19: 4132.5 | H19: 4495 | I19: 4857.5 | J19: 5220 | K19: 5582.5 | L19: 5945 | M19: 6307.5 | N19: 6670 | O19: 7032.5 | P19: 7395 | Q19: 7757.5 | R19: 8120 | S19: 8482.5 | T19: 8845 | U19: 9207.5 | V19: 9570 | W19: 9932.5 | X19: 10295 | Y19: 10657.5 | Z19: 11020 | AA19: 11382.5 | AB19: 11745 | AC19: 12107.5 | AD19: 12470 | AE19: 12832.5 | AF19: 13195 | AG19: 13557.5
A20: Joint | B20: =B12*(1+$C$17) -> 2900 | C20: =C12*(1+$C$17) -> 3407.5 | D20: 3770 | E20: 4132.5 | F20: 4495 | G20: 4857.5 | H20: 5220 | I20: 5582.5 | J20: 5945 | K20: 6307.5 | L20: 6670 | M20: 7032.5 | N20: 7395 | O20: 7757.5 | P20: 8120 | Q20: 8482.5 | R20: 8845 | S20: 9207.5 | T20: 9570 | U20: 9932.5 | V20: 10295 | W20: 10657.5 | X20: 11020 | Y20: 11382.5 | Z20: 11745 | AA20: 12107.5 | AB20: 12470 | AC20: 12832.5 | AD20: 13195 | AE20: 13557.5 | AF20: 13920 | AG20: 14282.5
A22: No. of Dependants | B22: 0 | C22: 1 | D22: 2 | E22: 3 | F22: 4 | G22: 5 | H22: 6 | I22: 7 | J22: 8 | K22: 9 | L22: 10 | M22: 11 | N22: 12 | O22: 13 | P22: 14 | Q22: 15 | R22: 16 | S22: 17 | T22: 18 | U22: 19 | V22: 20 | W22: 21 | X22: 22 | Y22: 23 | Z22: 24 | AA22: 25 | AB22: 26 | AC22: 27 | AD22: 28 | AE22: 29 | AF22: 30 | AG22: 31
A23: Applicable Rate | B23: =IF($B$3="No",B19,B20) -> 2900 | C23: =IF($B$3="No",C19,C20) -> 3407.5 | D23: 3770 | E23: 4132.5 | F23: 4495 | G23: 4857.5 | H23: 5220 | I23: 5582.5 | J23: 5945 | K23: 6307.5 | L23: 6670 | M23: 7032.5 | N23: 7395 | O23: 7757.5 | P23: 8120 | Q23: 8482.5 | R23: 8845 | S23: 9207.5 | T23: 9570 | U23: 9932.5 | V23: 10295 | W23: 10657.5 | X23: 11020 | Y23: 11382.5 | Z23: 11745 | AA23: 12107.5 | AB23: 12470 | AC23: 12832.5 | AD23: 13195 | AE23: 13557.5 | AF23: 13920 | AG23: 14282.5
A25: LTI Exemption MILO | B25: Buffer = | C25: 0.45
A26: No of Dependants | B26: 0 | C26: 1 | D26: 2 | E26: 3 | F26: 4 | G26: 5 | H26: 6 | I26: 7 | J26: 8 | K26: 9 | L26: 10 | M26: 11 | N26: 12 | O26: 13 | P26: 14 | Q26: 15 | R26: 16 | S26: 17 | T26: 18 | U26: 19 | V26: 20 | W26: 21 | X26: 22 | Y26: 23 | Z26: 24 | AA26: 25 | AB26: 26 | AC26: 27 | AD26: 28 | AE26: 29 | AF26: 30 | AG26: 31
A27: Single | B27: =B11*(1+$C$25) -> 2175 | C27: =C11*(1+$C$25) -> 2682.5 | D27: 3045 | E27: 3407.5 | F27: 3770 | G27: 4132.5 | H27: 4495 | I27: 4857.5 | J27: 5220 | K27: 5582.5 | L27: 5945 | M27: 6307.5 | N27: 6670 | O27: 7032.5 | P27: 7395 | Q27: 7757.5 | R27: 8120 | S27: 8482.5 | T27: 8845 | U27: 9207.5 | V27: 9570 | W27: 9932.5 | X27: 10295 | Y27: 10657.5 | Z27: 11020 | AA27: 11382.5 | AB27: 11745 | AC27: 12107.5 | AD27: 12470 | AE27: 12832.5 | AF27: 13195 | AG27: 13557.5
A28: Joint | B28: =B12*(1+$C$25) -> 2900 | C28: 3407.5 | D28: 3770 | E28: 4132.5 | F28: 4495 | G28: 4857.5 | H28: 5220 | I28: 5582.5 | J28: 5945 | K28: 6307.5 | L28: 6670 | M28: 7032.5 | N28: 7395 | O28: 7757.5 | P28: 8120 | Q28: 8482.5 | R28: 8845 | S28: 9207.5 | T28: 9570 | U28: 9932.5 | V28: 10295 | W28: 10657.5 | X28: 11020 | Y28: 11382.5 | Z28: 11745 | AA28: 12107.5 | AB28: 12470 | AC28: 12832.5 | AD28: 13195 | AE28: 13557.5 | AF28: 13920 | AG28: 14282.5
A30: No. of Dependants | B30: 0 | C30: 1 | D30: 2 | E30: 3 | F30: 4 | G30: 5 | H30: 6 | I30: 7 | J30: 8 | K30: 9 | L30: 10 | M30: 11 | N30: 12 | O30: 13 | P30: 14 | Q30: 15 | R30: 16 | S30: 17 | T30: 18 | U30: 19 | V30: 20 | W30: 21 | X30: 22 | Y30: 23 | Z30: 24 | AA30: 25 | AB30: 26 | AC30: 27 | AD30: 28 | AE30: 29 | AF30: 30 | AG30: 31
A31: Applicable Rate | B31: =IF($B$3="No",B27,B28) -> 2900 | C31: =IF($B$3="No",C27,C28) -> 3407.5 | D31: 3770 | E31: 4132.5 | F31: 4495 | G31: 4857.5 | H31: 5220 | I31: 5582.5 | J31: 5945 | K31: 6307.5 | L31: 6670 | M31: 7032.5 | N31: 7395 | O31: 7757.5 | P31: 8120 | Q31: 8482.5 | R31: 8845 | S31: 9207.5 | T31: 9570 | U31: 9932.5 | V31: 10295 | W31: 10657.5 | X31: 11020 | Y31: 11382.5 | Z31: 11745 | AA31: 12107.5 | AB31: 12470 | AC31: 12832.5 | AD31: 13195 | AE31: 13557.5 | AF31: 13920 | AG31: 14282.5

Sheet NDI (hidden)
B3: Joint Application | C3: =Proposal!E35 -> 0
B4: No. Of Dependants | C4: =Proposal!E37 -> 0
B5: Look up field | C5: =IF(C3="No",1,IF(C4=0,2,3)) -> 2
B6: Income | C6: =Proposal!P55 -> 0
B7: 0 | C7: 0 | F7: Single | G7: Joint (Dependants) | H7: Joint No Dependants
B8: 30000 | C8: =IF($C$5=1,F8,IF($C$5=2,G8,IF($C$5=3,H8,0))) -> 0 | E8: 30,000 – 34,999 | F8: 25 | G8: 0 | H8: 0
B9: 35000 | C9: 25 | E9: 35,000 – 39,999 | F9: 35 | G9: 25 | H9: 0
B10: 40000 | C10: 30 | E10: 40,000 – 49,999 | F10: 45 | G10: 30 | H10: 30
B11: 50000 | C11: 40 | E11: 50,000 -59,999 | F11: 45 | G11: 40 | H11: 35
B12: 60000 | C12: 45 | E12: 60,000 – 74,999 | F12: 50 | G12: 45 | H12: 45
B13: 75000 | C13: 50 | E13: 75,000 + | F13: 50 | G13: 50 | H13: 50
B15: =VLOOKUP(C6,$B$7:$C$13,2,1)/100 -> 0 | C15: Applicable NDI

Sheet Restriction Text (hidden)
A3: Income Left over | D3: Combined | E3: Married
A4: Net Monthly Income | D4: =Proposal!P120 ->  | E4: =Proposal!P120 -> 
A5: Max NDI€ | D5: =MAX(IF('Tax Calc'!D10>39999,IF(APPLICATION_TYPE="Joint",D4-2500,D4-1500),IF(APPLICATION_TYPE="Joint",D4-2000,D4-1250)),0) ->  | E5: =MAX(IF('Tax Calc'!E10>39999,E4-2500,E4-2000),0) ->  | F5: =IF(APPLICATION_STATUS=1,E5,D5) -> 
A7: Result_Text
A8: No loan sought amount has been entered
A9: ="Below Minimum Loan Amount by"&" €"&E9 -> Below Minimum Loan Amount by €30000 | E9: =IF(Proposal!E24="Top Up/Equity Release",10000-Proposal!N132,30000-Proposal!N132) -> 30000
A10: ="Within KBC lending criteria for up to"&" €"&ROUND(E11,0) ->  | E10: =Proposal!P132-Proposal!N132 -> 
A11: ="The loan amount sought is outside KBC lending criteria by"&" €"&-ROUND(E10,0)&"*" ->  | E11: =Proposal!P132 -> 
B28: Min | C28: NDI | D28: LTV | E28: Min 5-80% | F28: 80%LTV
A29: NDI_Max_Percent | B29: =IF(Proposal!P120<=0,0,B30/Proposal!P120) ->  | C29: =IF(APPLICATION_TYPE="Joint",NDI_Max_Percent_Joint,NDI_Max_Percent_Single) ->  | F29: 0.8 | I29: =(Proposal!$P$14)/12 -> 0.001666666667
A30: NDI_Max | B30: =PMT((Proposal!$P$14)/12,Term_Years*12,-(Max_Loan_Amount),0,0) ->  | C30: =Proposal!P130 ->  | I30: =Term_Years*12 -> 
A31: Min_Loan_Amount | B31: =VLOOKUP(Proposal!E24,'MAX LTV'!$B$8:$I$22,7,FALSE) ->  | C31: 30000 | I31: =-C30 -> 
A32: Max_Loan_Amount | B32: =C32 ->  | C32: =PV((Proposal!$P$14)/12,Term_Years*12,-C30,0) ->  | D32: =IF(Proposal!P18>0,'Tax Calc'!#REF!*Proposal!P18,"") ->  | E32: =MIN(#REF!,F32) ->  | F32: =IF(Proposal!P18>0,Proposal!P18*F29,"") -> 
A33: Term_Max_Years_Allowed | B33: =VLOOKUP('Tax Calc'!B5,Variables!A85:E92,2,0) -> 
A34: Term_Years | B34: =IF(Term_Sought>0,MIN(Term_Sought,Term_Max_Years_Allowed),Term_Max_Years_Allowed) -> 
A35: NDI_Max€
A40: Restriction_Text
A41: =CONCATENATE("The loan amount has been restricted to ",IF(C30=F5,A43,IF(Max_Loan_Amount='Tax Calc'!#REF!,A45,IF(Max_Loan_Amount=D32,A42,A44)))) -> 
A42: =CONCATENATE("a loan to value of ",TEXT('Tax Calc'!#REF!,"0%")) -> 
A43: =CONCATENATE("a minimum income left over of ",IF(APPLICATION_TYPE="Single",IF('Tax Calc'!D10<40000,"€1,250","€1,500"),IF('Tax Calc'!D10<40000,"€2,000","€2,500"))) -> 
A44: =CONCATENATE("a net disposable income level of ",TEXT(C29,"0%")) -> 
A45: =CONCATENATE("a maximum loan amount of ",TEXT('Tax Calc'!#REF!,"#,##0")) -> 
A47: =CONCATENATE("(based on a stressed interest rate increase of ", (STRESS_RATE_ADDITION*100),"% over the ", Variable_Rate*100,"% variable rate over ",Term_Years," years)") -> 

Sheet Tax Calc (hidden)
A1: Applicant Details | D1: Applicant 1 | E1: Applicant 2
A2: APPLICATION_STATUS | B2: =IF(ISBLANK(D2),1,MATCH(D2,Variables!$A$8:$A$10,0)) ->  | C2: 1 | D2: =Proposal!E33 -> 0 | E2: =Proposal!K33 -> 0 | F2: =ISBLANK(D2) -> FALSE | G2: =IF(ISBLANK(D2),1,2) -> 2
A3: SELF_EMPLOYED | B3: =IF(ISBLANK(D3),2,MATCH(D3,Variables!$A$13:$A$14,0)) ->  | C3: =IF(ISBLANK(E3),2,MATCH(E3,Variables!$A$13:$A$14,0)) ->  | D3: =Proposal!E39 -> 0 | E3: =Proposal!N39 -> 0
A4: APPLICATION_TYPE | B4: =IF(Proposal!E35="Yes","Joint",IF(C10>0,"Joint",IF(APPLICATION_STATUS=2,"Joint","Single"))) ->  | D4: Two Incomes | E4: =IF(AND((Proposal!H53>0),(Proposal!P53>0)),"Yes","No") -> No
A5: MORTGAGE_TYPE | B5: =Proposal!E24 -> 0
A6: EMPLOYMENT SECTOR | B6: =Proposal!E41 -> 0 | C6: =Proposal!N41 -> 0
B7: First | C7: Second | D7: Combined | E7: Joint
B8: 1 | C8: 1
A9: Applicant Income Details
A10: GROSS_INCOME | B10: =Proposal!H53 -> 0 | C10: =Proposal!P53 -> 0 | D10: =SUM(B10:C10) -> 0 | E10: =D10 -> 0
A12: Single Person | B12: =IF(AND(B$10>0,D$2=Variables!$A$8),VLOOKUP(A12,Variables!$A$26:$B$29,2,FALSE),0) -> 0 | C12: =IF(AND((C$10>0),(E$2=Variables!$A$8)),VLOOKUP(A12,Variables!$A$26:$B$29,2,FALSE),0) -> 0 | D12: =SUM(B12:C12) -> 0 | E12: =MIN(B12+(C10)+9000,B12+C12) -> 0
A13: Married - One Income | B13: =IF(AND((B$10>0),(D$2=Variables!A$9),(E$4="No")),VLOOKUP($A13,Variables!$A$26:$B$29,2,FALSE),0) -> 0 | C13: =IF(AND((C$10>0),(E$2=Variables!A$9),(E$4="No")),VLOOKUP($A13,Variables!$A$26:$B$29,2,FALSE),0) -> 0 | D13: =B13+C13 -> 0 | E13: =B13+C13 -> 0
A14: Married - Two Income | B14: =IF(AND((B$10>0),(D$2=Variables!A$9),($E$4="Yes"),(B$10>=C$10)),VLOOKUP($A14,Variables!$A$26:$B$29,2,FALSE),IF(AND((B$10>0),(D$2=Variables!A$9),($E$4="Yes"),(B$10<C$10)),(MIN(VLOOKUP($A14,Variables!$A$26:$C$29,3,FALSE),B10-SUM(B57:B59))),0)) -> 0 | C14: =IF(AND((C$10>0),(E$2=Variables!A$9),($E$4="Yes"),(C$10>B$10)),VLOOKUP($A14,Variables!$A$26:$B$29,2,FALSE),IF(AND((C$10>0),(E$2=Variables!A$9),($E$4="Yes"),(C$10<=B$10)),(MIN(VLOOKUP($A14,Variables!$A$26:$C$29,3,FALSE),C10-SUM(C57:C59))),0)) -> 0 | D14: =B14+C14 -> 0 | E14: =B14+C14 -> 0
A15: One Parent/Widowed Parent | B15: =IF(AND(B$10>0,D2=Variables!A10),VLOOKUP('Tax Calc'!A15,Variables!$A$26:$B$29,2,FALSE),0) -> 0 | C15: =IF(AND((C$10>0),(E2=Variables!$A10)),VLOOKUP('Tax Calc'!A15,Variables!$A$26:$B$29,2,FALSE),0) -> 0 | D15: =SUM(B15:C15) -> 0 | E15: =B15+C15 -> 0
A16: PRSI_Ceiling | B16: 0 | C16: 0
A17: PRSI_Floor | B17: 0 | C17: 0
A18: PRSI_Exemption | B18: 0 | C18: 0
A20: Taxable_Higher_Rate | B20: =MAX(B10-SUM(B57:B59)-SUM(B12:B15),0) -> 0 | C20: =MAX(C10-SUM(C57:C59)-SUM(C12:C15),0) -> 0 | D20: =IF(D21>=(D10-SUM(D57:D59)),0,MIN(SUM(B20:C20),D10-(D21+SUM($D$57:$D$59)))) -> 0 | E20: =IF(E21>=(E10-SUM(E57:E59)),0,MIN(SUM(B20:C20),E10-(E21+SUM(E57:E59)))) -> 0
A21: Taxable_Standard_Rate | B21: =MIN(SUM(B12:B15),B10-SUM(B57:B59)) -> 0 | C21: =MIN(SUM(C12:C15),C10-SUM(C57:C59)) -> 0 | D21: =SUM(B21:C21) -> 0 | E21: =MIN(SUM(E12:E15),E10-SUM(E57:E59)) -> 0 | G21: =IF(0<B10,1,2) -> 2
A22: Taxable_PRSI - All Income | B22: =B10 -> 0 | C22: =C10 -> 0 | D22: =SUM(B22:C22) -> 0 | E22: =SUM(B22:C22) -> 0
A23: Taxable_Universal_Social_Charge - all income | B23: =IF(0<B10,MIN(1000000,B10)-0-SUM(B57:B59),0) -> 0 | C23: =IF(0<C10,MIN(1000000,C10)-0-SUM(C57:C59),0) -> 0 | D23: =SUM(B23:C23) -> 0 | E23: =SUM(B23:C23) -> 0
A25: Tax_Rate_Higher | B25: 0.4 | C25: 0.4
A26: Tax_Rate_Standard | B26: 0.2 | C26: 0.2
A27: Tax_Rate_PRSI | B27: 0.04 | C27: 0.04
A28: Tax_Rate_Universal_Social_Charge total income less than €13,000 | B28: 0 | C28: 0
A29: Tax_Rate_Universal_Social_Charge first €12,012 | B29: 0.005 | C29: 0.005
A30: Tax_Rate_Universal_Social_Charge next €7,360 | B30: 0.02 | C30: 0.02
A31: Tax_Rate_Universal_Social_Charge amts above €19,373 to €70,044 | B31: 0.0475 | C31: 0.0475
A32: Tax_Rate_Universal_Social_Charge amts above €70,044 PAYE ONLY | B32: 0.08 | C32: 0.08
A33: Tax_Rate_Universal_Social_Charge amts €70,044 to €100,000 SELF-EMPLOYED ONLY | B33: 0.08 | C33: 0.08
A34: Tax_Rate_Universal_Social_Charge amts above €100,000, SELF-EMPLOYED ONLY | B34: 0.11 | C34: 0.11
A36: USC Band A - Amt | B36: 12012 | C36: 12012 | D36: 20072 | E36: 20072
A37: USC Band B - Amt | B37: 7360 | C37: 7360 | D37: 11960 | E37: 11960
A38: USC Band C - Amt | B38: 50672 | C38: 50672
A39: USC Band D - Amt | B39: 70044 | C39: 70044
A40: USC Band E - Amt | B40: 29956 | C40: 29956
A41: USC Band F - Amt | B41: 100000 | C41: 100000
A42: Pension Levy Band A - Amt | B42: =IF(B$6="Public Sector",IF(B$10>Variables!B49,Variables!B49,'Tax Calc'!B$10),0) -> 0 | C42: =IF(C$6="Public Sector",IF(C$10>Variables!C49,Variables!C49,'Tax Calc'!C$10),0) -> 0
A43: Pension Levy Band B - Amt | B43: =IF(B6="Public Sector",IF(B10>Variables!B51,Variables!B50,IF(B10>Variables!B49,(B10-Variables!B49),0)),0) -> 0 | C43: =IF(C6="Public Sector",IF(C10>Variables!C51,Variables!C50,IF(C10>Variables!C49,(C10-Variables!C49),0)),0) -> 0
A44: Pension Levy Band C - Amt | B44: =IF(B6="Public Sector",IF(B10>Variables!B51,(B10-Variables!B51),0),0) -> 0 | C44: =IF(C6="Public Sector",IF(C10>Variables!C51,(C10-Variables!C51),0),0) -> 0
A46: Tax Chargeable
A47: Tax_Higher_Rate | B47: =B20*B25 -> 0 | C47: =C20*C25 -> 0 | D47: =SUM(B47:C47) -> 0 | E47: =E20*B25 -> 0 | F47: =+B47+C47-E47 -> 0
A48: Tax_Standard_Rate | B48: =B21*B26 -> 0 | C48: =C21*C26 -> 0 | D48: 0 | E48: =E21*B26 -> 0 | F48: =+B48+C48-E48 -> 0
A49: Tax_Rate_PRSI | B49: =IF(B10>18304,B10*B27,0) -> 0 | C49: =IF(C10>18304,C10*C27,0) -> 0 | D49: 0 | E49: =B49+C49 -> 0 | F49: 0
A50: Tax_Rate_Universal_Social_Charge first €12,012 | B50: =IF(B10>=B36,B36*B29,0) -> 0 | C50: =IF(C10>=C36,C36*C29,0) -> 0 | D50: 0 | E50: 0 | F50: =+B50+C50-E50 -> 0
A51: Tax_Rate_Universal_Social_Charge next €7,360 B | B51: =IF(B10>SUM(B36:B37),B37*B30,IF(B10>B36,(B10-B36)*B30,0)) -> 0 | C51: =IF(C10>SUM(C36:C37),C37*C30,IF(C10>C36,(C10-C36)*C30,0)) -> 0 | D51: 0 | E51: 0 | F51: =+B51+C51-E51 -> 0
A52: Tax_Rate_Universal_Social_Charge amts €19,373 to €70,044 | B52: =IF(B10>B39,B38*B31,IF(B10>SUM(B36:B37),(B10-SUM(B36:B37))*B31,0)) -> 0 | C52: =IF(C10>C39,C38*C31,IF(C10>SUM(C36:C37),(C10-SUM(C36:C37))*C31,0)) -> 0 | D52: 0 | E52: 0 | F52: 0
A53: Tax_Rate_Universal_Social_Charge amts above €70,044 PAYE ONLY | B53: =IF(D3="PAYE",IF(B10>B39,(B10-B39)*B32,0),0) -> 0 | C53: =IF(E3="PAYE",IF(C10>C39,(C10-C39)*C32,0),0) -> 0 | D53: 0 | E53: 0 | F53: 0
A54: Tax_Rate_Universal_Social_Charge amts €70,044 to €100,000 SELF-EMPLOYED ONLY | B54: =MAX(IF(D3="Self Employed",IF(B10>B41,B40*B33,(B10-B39)*B33),0),0) -> 0 | C54: =MAX(IF(E3="Self Employed",IF(C10>C41,C40*C33,(C10-C39)*C33),0),0) -> 0 | D54: 0 | E54: 0 | F54: 0
A55: Tax_Rate_Universal_Social_Charge amts above €100,000, SELF-EMPLOYED ONLY | B55: =IF(AND((D3="Self Employed"),(B10>B41)),(B10-B41)*B34,0) -> 0 | C55: =IF(AND((E3="Self Employed"),(C10>C41)),(C10-C41)*C34,0) -> 0 | D55: 0 | E55: 0 | F55: 0
A57: Pension Levy Band 1, Rate 1 | B57: =+B42*Variables!$B53 -> 0 | C57: =+C42*Variables!$B53 -> 0 | D57: =SUM(B57:C57) -> 0 | E57: =B57+C57 -> 0 | F57: =+B57+C57-E57 -> 0
A58: Pension Levy Band 2, Rate 2 | B58: =+B43*Variables!$B54 -> 0 | C58: =+C43*Variables!$B54 -> 0 | D58: =SUM(B58:C58) -> 0 | E58: =B58+C58 -> 0 | F58: =+B58+C58-E58 -> 0
A59: Pension Levy Band 3, Rate 3 | B59: =+B44*Variables!$B55 -> 0 | C59: =+C44*Variables!$B55 -> 0 | D59: =SUM(B59:C59) -> 0 | E59: =B59+C59 -> 0 | F59: =+B59+C59-E59 -> 0
A60: Tax_Chargeable | B60: =SUM(B47:B59) -> 0 | C60: =SUM(C47:C59) -> 0 | D60: 0 | E60: 0 | F60: 0
A62: Tax Credits
A63: Personal_Tax_Credit | B63: =IF(B10>0,IF(AND((APPLICATION_STATUS=3),(Proposal!E37=0)),OFFSET(Variables!A34,0,APPLICATION_STATUS-1),OFFSET(Variables!$A$31,APPLICATION_STATUS,'Tax Calc'!B8)),0) -> 0 | C63: =IF(C10>0,OFFSET(Variables!$A$31,APPLICATION_STATUS,'Tax Calc'!C8),0) -> 0 | D63: =SUM(B63:C63) -> 0 | E63: =D63 -> 0
A64: Married - One working | B64: =IF(AND(Proposal!$E$33=Variables!$A$32,Proposal!N46=0),Variables!$B$33,0) -> 0 | C64: =IF(AND(Proposal!$E$33=Variables!$A$32,Proposal!E46=0),Variables!$B$33,0) -> 0 | D64: =SUM(B64:C64) -> 0 | E64: 0
A65: PAYE_Credit | B65: =IF(B$10>0,IF(B$3=1,Variables!B37,0),0) -> 0 | C65: =IF(C$10>0,IF(C$3=1,Variables!B37,0),0) -> 0 | D65: =SUM(B65:C65) -> 0 | E65: 0
A66: Self_Employed_Credit | B66: =IF(B$10>0,IF(B$3=2,Variables!C45,0),0) -> 0 | C66: =IF(C$10>0,IF(C$3=2,Variables!C45,0),0) -> 0 | D66: =SUM(B66:C66) -> 0 | E66: =D66 -> 0
A68: Limited to PAYE charge
A70: Tax_Credits | B70: =SUM(B63:B69) -> 0 | C70: =SUM(C63:C69) -> 0 | D70: =SUM(B70:C70) -> 0 | E70: =D70 -> 0
A73: Net_Disposable_Income | B73: =B10-B60+B70 -> 0 | C73: =C10-C60+C70 -> 0 | D73: =D10-D60+D70 -> 0 | E73: =E10-E60+E70 -> 0
A76: Net Monthly Income | D76: =D73/12 -> 0 | E76: =E73/12 -> 0

Sheet MAX LTV (hidden)
B2: Case Paramaters | I2: Maximum Age | J2: Maximum Age BTL/Holiday Home
B3: =Proposal!E24&Proposal!E28 ->  | C3: =VLOOKUP(B3,$D$8:$E$23,2,0) ->  | D3: =VLOOKUP(B3,D8:G23,4,0) ->  | E3: =VLOOKUP(B3,D7:I23,5,FALSE) ->  | I3: 68 | J3: 66
H5: 65
H6: 31
B7: Segment | C7: Location | D7: Segment & Location | E7: Max LTV | F7: Property Type | G7: Max Term | H7: <31 Max Term | I7: Min Loan Amt
B8: First Time Buyer | C8: Urban | D8: =B8&C8 -> First Time BuyerUrban | E8: 0.9 | F8: PDH | G8: =MAX(30,$H$5-Proposal!$P$24) -> 65 | H8: 35 | I8: 30000
B9: House Mover | C9: Urban | D9: =B9&C9 -> House MoverUrban | E9: 0.8 | F9: PDH | G9: =MAX(30,$H$5-Proposal!$P$24) -> 65 | H9: 35 | I9: 30000
B10: Switcher | C10: Urban | D10: =B10&C10 -> SwitcherUrban | E10: =IF(Loan_Sought<=Variables!$B$137,0.9,0.8) -> 0.9 | F10: PDH | G10: 30 | H10: 30 | I10: 30000
B11: Switcher - Additional Lending | C11: Urban | D11: =B11&C11 -> Switcher - Additional LendingUrban | E11: 0.8 | F11: PDH | G11: 30 | H11: 30 | I11: 30000
B12: Top Up/Equity Release | C12: Urban | D12: Top Up/Equity ReleaseUrban | E12: 0.8 | F12: PDH | G12: 30 | H12: 30 | I12: 10000
B13: RIP Purchase | C13: Urban | D13: RIP PurchaseUrban | E13: 0.7 | F13: RIP | G13: 20 | H13: 20 | I13: 30000
B14: RIP Remortgage | C14: Urban | D14: RIP RemortgageUrban | E14: 0.5 | F14: RIP | G14: 20 | H14: 20 | I14: 30000
B15: Holiday Home | C15: Urban | D15: Holiday HomeUrban | E15: 0.7 | F15: Holiday Home | G15: 20 | H15: 20 | I15: 30000
B16: First Time Buyer | C16: Other | D16: =B16&C16 -> First Time BuyerOther | E16: 0.9 | F16: PDH | G16: =MAX(30,H5-Proposal!$P$24) -> 65 | H16: 35 | I16: 30000
B17: House Mover | C17: Other | D17: House MoverOther | E17: 0.8 | F17: PDH | G17: =MAX(30,H5-Proposal!$P$24) -> 65 | H17: 35 | I17: 30000
B18: Switcher | C18: Other | D18: SwitcherOther | E18: 0.9 | F18: PDH | G18: 30 | H18: 35 | I18: 30000
B19: Switcher - Additional Lending | C19: Other | D19: Switcher - Additional LendingOther | E19: 0.8 | F19: PDH | G19: 30 | H19: 35 | I19: 30000
B20: Top Up/Equity Release | C20: Other | D20: Top Up/Equity ReleaseOther | E20: 0.8 | F20: PDH | G20: 30 | H20: 35 | I20: 10000
B21: RIP Purchase | C21: Other | D21: RIP PurchaseOther | E21: 0.7 | F21: RIP | G21: 20 | H21: 20 | I21: 30000
B22: RIP Remortgage | C22: Other | D22: RIP RemortgageOther | E22: 0.5 | F22: RIP | G22: 20 | H22: 20 | I22: 30000
B23: Holiday Home | C23: Other | D23: =B23&C23 -> Holiday HomeOther | E23: 0.7 | F23: Holiday Home | G23: 20 | H23: 20 | I23: 30000

Sheet Variables (hidden)
A1: VARIABLES
A3: Version_Control
A4: Version_Number | B4: 2.1
A5: Date | B5: 2017-10-27
A7: Applicant_Status
A8: Single
A9: Married
A10: Widowed
A12: Employment_Type
A13: Paye
A14: Self Employed
A16: Employment_Sector
A17: Private Sector
A18: Public Sector
A20: Allowable | B20: 1 | C20: 2
A21: Income_Salary | B21: 1 | C21: 1
A22: Car/Garda_Allowance | B22: 1 | C22: 1
A23: Income_Overtime Commission Bonus | B23: 0.5 | C23: 0.5
A25: Standard_Rate_Threshold
A26: Single Person | B26: 34550 | C26: 0 | D26: 0
A27: Married - One Income | B27: 43550 | C27: 0 | D27: 0
A28: Married - Two Income | B28: 43550 | C28: 25550
A29: One Parent/Widowed Parent | B29: 38550 | C29: 38550 | D29: 0
A31: Tax_Credits
A32: Married | B32: 1650 | C32: 0 | D32: 1650 | E32: 0
A33: Single | B33: 1650 | C33: 1650 | D33: 0 | E33: 0
A34: Widowed | B34: 1650 | C34: 2190 | D34: 0 | E34: 0
B36: PAYE | C36: Self Employed
A37: PAYE_Credit | B37: 1650 | C37: 0
A38: PRSI_Ceiling | B38: 0 | C38: 0
A39: PRSI_Floor | B39: 0 | C39: 0
A40: PRSI_Exemption | B40: 0 | C40: 0
A41: Health_Levy_Ceiling | B41: 0 | C41: 0
A42: Health_Levy_Floor | B42: 0 | C42: 0
A43: Health Levy Step | B43: 0 | C43: 0
A44: Health_Levy_Exemption | B44: 0 | C44: 0
A45: PRSI SELF EMPLOYED | B45: 0 | C45: 1150
A47: PENSION LEVY
A49: Band 1 | B49: 28750 | C49: 28750
A50: Band 2 | B50: 31250 | C50: 31250
A51: Band 3 | B51: 60000 | C51: 60000
A53: Rate 1 | B53: 0
A54: Rate 2 | B54: 0.1
A55: Rate 3 | B55: 0.105
A57: Stress
A58: Stress_Rate_Increase
A59: Term_Max_Years | B59: 35
A60: Term_Max_Years_Remortgage | B60: 35
A61: Term_Max_Years_FTB | B61: 35
A63: NDI_Limits | B63: < | C63: 1
A65: NDI_Single | B65: 10000000 | C65: 0.5
A66: NDI_Single | B66: 84999 | C66: 0.5
A67: NDI_Single | B67: 74999 | C67: 0.5
A68: NDI_Single | B68: 59999 | C68: 0.45
A69: NDI_Single | B69: 49999 | C69: 0.45
A70: NDI_Single | B70: 39999 | C70: 0.35
A71: NDI_Single | B71: 29999 | C71: 0.3
A72: NDI_Single | B72: 24999 | C72: 0
A75: NDI_Joint | B75: 10000000 | C75: 0.5
A76: NDI_Joint | B76: 84999 | C76: 0.45
A77: NDI_Joint | B77: 74999 | C77: 0.4
A78: NDI_Joint | B78: 59999 | C78: 0.4
A79: NDI_Joint | B79: 49999 | C79: 0.3
A80: NDI_Joint | B80: 39999 | C80: 0.25
A81: NDI_Joint | B81: 29999 | C81: 0
A84: Lending_Purpose | B84: Term_Max_Year | C84: LTV_Max_Urban | D84: LTV_Max_Other | E84: Holiday Home
A85: First Time Buyer | B85: 35 | C85: 0.9 | D85: 0.8 | E85: 0.7
A86: House Mover | B86: 35 | C86: 0.9 | D86: 0.8 | E86: 0.7
A87: Switcher | B87: 30 | C87: 0.9 | D87: 0.8 | E87: 0.7
A88: Switcher - Additional Lending | B88: 30 | C88: 0.9 | D88: 0.8 | E88: 0.7
A89: Top Up/Equity Release | B89: 35 | C89: 0.9 | D89: 0.8 | E89: 0.7
A90: RIP Purchase | B90: 35 | C90: 0.7 | D90: 0.7 | E90: 0.7
A91: RIP Remortgage | B91: 35 | C91: 0.5 | D91: 0.5 | E91: 0.7
A92: Holiday Home | B92: 35 | C92: 0.7 | D92: 0.7 | E92: 0.7
A95: Borrower_Category
A96: First Time Buyer | B96: Private Residential
A97: House Mover | B97: Private Residential
A98: Switcher | B98: Private Residential
A99: Switcher - Additional Lending | B99: Private Residential
A100: Top Up/Equity Release | B100: Private Residential
A101: RIP Purchase | B101: Residential Investment Property
A102: RIP Remortgage | B102: Residential Investment Property
A103: Holiday Home | B103: Private Residential
A108: B1 | B108: 0 | C108: 500 | D108: 0.02
B109: 50000 | C109: 1000 | D109: 0.04
A111: Tax_Revenue_At_Source_Ceiling | B111: FTB | C111: NON_FTB
A112: TRS_MARRIED_WIDOWED
A113: TRS_SINGLE
A114: TRS_WIDOWED
A115: TRS Rate
A117: INCOME LEVY
A118: Threshold | B118: 15028
A119: Band 1 | B119: 75036
A120: Band 2 | B120: 174980
A122: Rate 1 | B122: 0.02
A123: Rate 2 | B123: 0.04
A124: Rate 3 | B124: 0.06
A126: PENSION LEVY
A128: Band 1 | B128: 28750
A129: Band 2 | B129: 31250
A130: Band 3 | B130: 60000
A132: Rate 1 | B132: 0
A133: Rate 2 | B133: 0.1
A134: Rate 3 | B134: 0.105
A136: Loan Sought
A137: Remortgage 90% Max | B137: 750000

Sheet Messaging (hidden)
B3: Loan to Income
B4: Multiple | C4: 3.5
B6: Results Messaging
B7: 0 | C7: =IF(Proposal!P22>0.9,"Max LTV Exceeded per KBC Criteria",IF(Term_Sought>Proposal!P26,"Max Term Exceeded",IF(Proposal!$P$22>Proposal!$P$20,"Max LTV Exceeded",IF(Term_Sought>Proposal!$P$26,"Maximum Term Exceeded",IF(Proposal!$N$132<'Restriction Text'!$B$31,'Restriction Text'!$A$9,IF(Proposal!$P$132>Proposal!$N$132,'Restriction Text'!$A$10,'Restriction Text'!$A$11)))))) -> Max LTV Exceeded per KBC Criteria
B8: 1 | C8: =IF(Proposal!P22>0.9,"Max LTV Exceeded per KBC Criteria",IF(Term_Sought>Proposal!P26,"Max Term Exceeded",IF(AND(Proposal!E110="Yes",Proposal!H114="Yes"),VLOOKUP(Proposal!C110,$B$12:$C$13,2,FALSE),IF(AND(Proposal!P110="Yes",Proposal!H114="Yes"),VLOOKUP(Proposal!K110,$B$12:$C$13,2,FALSE),C14)))) -> Max LTV Exceeded per KBC Criteria
B9: 2 | C9: =IF(Proposal!P22>0.9,"Max LTV Exceeded per KBC Criteria","Loan sought is outside lending limits") -> Max LTV Exceeded per KBC Criteria
B12: Outside LTV Limit | C12: ="Within KBC lending criteria for up to "&"€"&ROUND(Proposal!P132,0)&" - (LTV Exception)*" ->  | D12: ="*If applicant wishes to borrow more than 3.5 times income, the LTV must be reduced to below "&ROUND(Proposal!P20*100,2)&"%" -> 
B13: Outside LTI Limit | C13: ="Within KBC lending criteria for up to "&"€"&ROUND(MIN(Proposal!P132,Proposal!P18*Proposal!P20),0)&" - (LTI Exception)*" ->  | D13: ="*If applicant wishes to borrow more than "&ROUND(Proposal!P20*100,2)&"%"&", the LTI must be reduced to below 3.5x income" -> 
C14: Loan amount sought is outside lending limits
E15: =IF(AND(Proposal!$E$110="Yes",Proposal!$H$114="Yes"),VLOOKUP(Proposal!$C$110,$B$12:$D$13,3,FALSE),IF(AND(Proposal!$P$110="Yes",Proposal!$H$114="Yes"),VLOOKUP(Proposal!$K$110,$B$12:$C$13,2,FALSE),"")) -> 
E19: Above | F19: Cap | G19: 20k threshold | H19: Loan Amount
D20: LTV | E20: =Proposal!E110 -> No | F20: =Proposal!E104*Proposal!P18 ->  | G20: =F20+20000 ->  | H20: =Loan_Sought -> 0
D21: LTI | E21: =Proposal!P110 -> No | F21: =Proposal!P104 -> 0 | G21: =F21+20000 -> 20000 | H21: =Loan_Sought -> 0
D23: ="Please ensure loan amount is at least "&"€"&ROUND(Proposal!H116,0)&" to qualify for an exception" -> 
D24: Please amend loan amount before sending for credit decision

Sheet FX (hidden)
A2: Cross Rates
A3: Currency Last Trade | B3: USD $ N/A | C3: JPY ¥ N/A | D3: EUR € N/A | E3: CAD $ N/A | F3: GBP £ N/A | G3: AUD $ N/A | H3: CHF N/A
A4: 1 USD $ | B4: – | C4: 112.464 | D4: 0.9263 | E4: 1.3004 | F4: 0.7989 | G4: 1.3004 | H4: 0.9911
A5: 1 JPY ¥ | B5: 0.0089 | C5: – | D5: 0.0082 | E5: 0.0116 | F5: 0.0071 | G5: 0.0116 | H5: 0.0088
A6: 1 EUR € | B6: 1.0796 | C6: 121.4121 | D6: – | E6: 1.4039 | F6: 0.8625 | G6: 1.4039 | H6: 1.0699
A7: 1 CAD $ | B7: 0.769 | C7: 86.4815 | D7: 0.7123 | E7: – | F7: 0.6143 | G7: 1 | H7: 0.7621
A8: 1 GBP £ | B8: 1.2517 | C8: 140.7718 | D8: 1.1595 | E8: 1.6278 | F8: – | G8: 1.6277 | H8: 1.2405
A9: 1 AUD $ | B9: 0.769 | C9: 86.4842 | D9: 0.7123 | E9: 1 | F9: 0.6144 | G9: – | H9: 0.7621
A10: 1 CHF | B10: 1.009 | C10: 113.4773 | D10: 0.9346 | E10: 1.3122 | F10: 0.8061 | G10: 1.3121 | H10: –

Sheet Mortgage Rates (hidden)
A1: Variable | B1: Rate | D1: Fixed | E1: Rate | G1: Buy to Let | H1: Rate | L1: Variable
A2: <50% | B2: 0.033 | D2: 1 Year (all LTV) | E2: 0.035 | G2: <50% Variable | H2: 0.045 | L2: Fixed
A3: <60% | B3: 0.0335 | D3: 2 Year <60% | E3: 0.0319 | G3: >50% Variable | H3: 0.048 | L3: Buy to Let
A4: <70% | B4: 0.034 | D4: 2 Year 60%-80% | E4: 0.0319 | G4: 3 Year Fixed | H4: 0.0525
A5: <80% | B5: 0.034 | D5: 2 Year 80%-90% | E5: 0.038 | G5: 5 Year Fixed | H5: 0.0525
A6: <90% | B6: 0.0385 | D6: 3 Year <60% | E6: 0.033
D7: 3 Year 60%-80% | E7: 0.033
D8: 3 Year 80%-90% | E8: 0.0385
D9: 5 Year <60% | E9: 0.0365
D10: 5 Year 60%-80% | E10: 0.0385
D11: 5 Year 80%-90% | E11: 0.0405
A17: Type | B17: Rate | E17: Type | F17: Stressed Rate
A18: <50% | B18: 0.033 | E18: <50% | F18: 0.033
A19: <60% | B19: 0.0335 | E19: <60% | F19: 0.0335
A20: <70% | B20: 0.034 | E20: <70% | F20: 0.034
A21: <80% | B21: 0.034 | E21: <80% | F21: 0.034
A22: <90% | B22: 0.0385 | E22: <90% | F22: 0.0385
A23: 1 Year (all LTV) | B23: 0.035 | E23: 1 Year (all LTV) | F23: 0.035
A24: 2 Year <60% | B24: 0.0319 | E24: 2 Year <60% | F24: 0.0319
A25: 2 Year 60%-80% | B25: 0.0319 | E25: 2 Year 60%-80% | F25: 0.0319
A26: 2 Year 80%-90% | B26: 0.038 | E26: 2 Year 80%-90% | F26: 0.038
A27: 3 Year <60% | B27: 0.033 | E27: 3 Year <60% | F27: 0.033
A28: 3 Year 60%-80% | B28: 0.033 | E28: 3 Year 60%-80% | F28: 0.033
A29: 3 Year 80%-90% | B29: 0.0385 | E29: 3 Year 80%-90% | F29: 0.0385
A30: 5 Year <60% | B30: 0.0365 | E30: 5 Year <60% | F30: 0.0335
A31: 5 Year 60%-80% | B31: 0.0385 | E31: 5 Year 60%-80% | F31: 0.034
A32: 5 Year 80%-90% | B32: 0.0405 | E32: 5 Year 80%-90% | F32: 0.0385
A33: <50% Variable | B33: 0.045
A34: >50% Variable | B34: 0.048
A35: 3 Year Fixed | B35: 0.0525
A36: 5 Year Fixed | B36: 0.0525
A37: SVR | B37: 0.0425

Sheet Sheet1 (hidden)
